[Event "GER-ch Youth-U12 2022"]
[Site "Willingen"]
[Date "2022.06.09"]
[Round "7.26"]
[White "Radeke, Timothy"]
[Black "Steven, Matthias"]
[Result "1-0"]
[ECO "B33"]
[WhiteElo "1129"]
[BlackElo "1376"]
[Annotator "NA RC COMBH"]
[PlyCount "53"]
[EventDate "2022.06.05"]
[EventType "swiss"]
[EventRounds "9"]
[EventCountry "GER"]
[SourceTitle "playchess.com"]
[Source "ChessBase"]
[SourceQuality "1"]
[TimeControl "40/4500+30:900+30"]

1. e4 {[%emt 0:00:00]} c5 {[%emt 0:00:00]} 2. Nf3 {[%emt 0:00:00]} Nc6 {[%emt 0:00:00]} 3. d4 {[%emt 0:00:00]} cxd4 {[%emt 0:00:00]} 4. Nxd4 {[%emt 0:00:00]} Nf6 {[%emt 0:00:00]} 5. Nxc6 {[%emt 0:00:00]} bxc6 {[%emt 0:00:00]} 6. Qd4 {[%emt 0:00:00]} d6 {[%emt 0:00:00]} 7. Nc3 {[%emt 0:00:00]} c5 {[%emt 0:00:00]} 8. Bb5+ {[%emt 0:00:00]} Bd7 {[%emt 0:00:00]} 9. Qa4 {[%emt 0:01:25]} a6 {[%emt 0:00:00]} 10. Bxd7+ {[%emt 0:00:00]} Qxd7 {[%emt 0:00:00]} 11. Qxd7+ {[%emt 0:00:00]} Nxd7 {[%emt 0:00:00]} 12. Bf4 {[%emt 0:00:00]} g6 {[%emt 0:00:00]} 13. O-O-O {[%emt 0:00:54]} Bg7 {[%emt 0:00:00]} 14. Nd5 {[%emt 0:02:33]} Ra7 {[%emt 0:00:00]} 15. c3 {[%emt 0:02:08]} Nf6 {[%emt 0:00:00]} 16. Rhe1 {[%emt 0:13:16]} Nh5 {[%emt 0:02:55]} 17. Be3 {[%emt 0:09:33]} Rb7 {[%emt 0:01:38]} 18. g4 {[%emt 0:03:22]} Nf6 {[%emt 0:01:06]} 19. f3 {[%emt 0:02:34]} O-O {[%emt 0:00:58]} 20. Bf4 {[%emt 0:02:45]} Rfb8 {[%emt 0:04:07]} 21. Re2 {[%emt 0:05:02]} a5 {[%emt 0:05:54]} 22. e5 {[%emt 0:04:05]} Ne8 {[%emt 0:03:37]} 23. exd6 {[%emt 0:05:40]} exd6 {[%emt 0:00:33]} 24. Rde1 {[%emt 0:02:24]} Kf8 {[%emt 0:01:51]} 25. Rxe8+ {[%emt 0:03:18]} Rxe8 {[%emt 0:02:24]} 26. Bxd6+ {[%emt 0:00:07]} Rbe7 {[%emt 0:01:31]} 27. Nxe7 {[%emt 0:03:18]} 1-0

[Event "GER-ch Youth-U12 2022"]
[Site "Willingen"]
[Date "2022.06.09"]
[Round "7.27"]
[White "Draude, Theo"]
[Black "Dell, Philip"]
[Result "1/2-1/2"]
[ECO "C56"]
[WhiteElo "1397"]
[BlackElo "1457"]
[Annotator "NA RC COMBH"]
[PlyCount "140"]
[EventDate "2022.06.05"]
[EventType "swiss"]
[EventRounds "9"]
[EventCountry "GER"]
[SourceTitle "playchess.com"]
[Source "ChessBase"]
[SourceQuality "1"]
[TimeControl "40/4500+30:900+30"]

1. e4 {[%emt 0:00:00]} e5 {[%emt 0:00:00]} 2. Nf3 {[%emt 0:00:00]} Nc6 {[%emt 0:00:00]} 3. Bc4 {[%emt 0:00:00]} Bc5 {[%emt 0:00:00]} 4. c3 {[%emt 0:00:00]} Nf6 {[%emt 0:00:00]} 5. d4 {[%emt 0:00:00]} exd4 {[%emt 0:00:00]} 6. O-O {[%emt 0:00:00]} Nxe4 {[%emt 0:00:00]} 7. Qe2 {[%emt 0:00:00]} d5 {[%emt 0:00:00]} 8. cxd4 {[%emt 0:00:00]} dxc4 {[%emt 0:00:00]} 9. dxc5 {[%emt 0:00:00]} Qd3 {[%emt 0:00:00]} 10. Re1 {[%emt 0:00:00]} f5 {[%emt 0:00:00]} 11. Nc3 {[%emt 0:00:00]} O-O {[%emt 0:00:00]} 12. Nxe4 {[%emt 0:00:00]} fxe4 {[%emt 0:00:00]} 13. Qxe4 {[%emt 0:00:00]} Bf5 {[%emt 0:00:00]} 14. Qe3 {[%emt 0:00:00]} Nb4 {[%emt 0:18:50]} 15. Qxd3 {[%emt 0:00:00]} Nxd3 {[%emt 0:05:36]} 16. Re7 {[%emt 0:00:00]} Rf7 {[%emt 0:08:50]} 17. Rxf7 {[%emt 0:00:00]} Kxf7 {[%emt 0:00:32]} 18. Nd4 {[%emt 0:17:21]} Bg6 {[%emt 0:09:44]} 19. Nb5 {[%emt 0:05:58]} Re8 {[%emt 0:04:01]} 20. Be3 {[%emt 0:01:36]} Nxb2 {[%emt 0:01:37]} 21. Nxc7 {[%emt 0:01:56]} Rd8 {[%emt 0:05:24]} 22. Nb5 {[%emt 0:02:13]} Rd7 {[%emt 0:04:32]} 23. Rc1 {[%emt 0:06:07]} Na4 {[%emt 0:02:13]} 24. Nd6+ {[%emt 0:04:39]} Ke6 {[%emt 0:01:55]} 25. Nxc4 {[%emt 0:01:46]} Nc3 {[%emt 0:02:03]} 26. Re1 {[%emt 0:05:53]} Ne2+ {[%emt 0:03:09]} 27. Kh1 {[%emt 0:01:57]} Bd3 {[%emt 0:00:50]} 28. Nd6 {[%emt 0:01:25]} b6 {[%emt 0:01:08]} 29. h3 {[%emt 0:07:35]} Nc3 {[%emt 0:00:21]} 30. Bf4+ {[%emt 0:02:38]} Ne2 {[%emt 0:00:37]} 31. cxb6 {[%emt 0:03:07]} axb6 {[%emt 0:01:05]} 32. a4 {[%emt 0:01:02]} Kf6 {[%emt 0:02:28]} 33. Bh2 {[%emt 0:03:42]} g5 {[%emt 0:03:16]} 34. Nb5 {[%emt 0:01:59]} Bxb5 {[%emt 0:00:18]} 35. axb5 {[%emt 0:00:05]} Re7 {[%emt 0:00:54]} 36. Rd1 {[%emt 0:01:17]} Kf7 {[%emt 0:01:47]} 37. Bg3 {[%emt 0:01:50]} Nc3 {[%emt 0:02:07]} 38. Rd6 {[%emt 0:00:42]} Re6 {[%emt 0:01:09]} 39. Rd7+ {[%emt 0:00:31]} Re7 {[%emt 0:00:13]} 40. Rd3 {[%emt 0:00:18]} Na4 {[%emt 0:02:33]} 41. Kh2 {[%emt 0:15:53]} h5 {[%emt 0:17:57]} 42. h4 {[%emt 0:01:07]} gxh4 {[%emt 0:00:50]} 43. Bxh4 {[%emt 0:00:18]} Re4 {[%emt 0:00:33]} 44. Bg3 {[%emt 0:00:47]} Rb4 {[%emt 0:00:27]} 45. Rd5 {[%emt 0:00:30]} h4 {[%emt 0:01:20]} 46. Bd6 {[%emt 0:00:47]} Rb2 {[%emt 0:00:54]} 47. Rd4 {[%emt 0:00:45]} Nc3 {[%emt 0:01:27]} 48. Rxh4 {[%emt 0:01:02]} Rxf2 {[%emt 0:01:29]} 49. Bg3 {[%emt 0:01:55]} Rf5 {[%emt 0:01:32]} 50. Rf4 {[%emt 0:00:27]} Rxf4 {[%emt 0:00:08]} 51. Bxf4 {[%emt 0:00:07]} Nxb5 {[%emt 0:00:28]} 52. Be3 {[%emt 0:00:07]} Nd6 {[%emt 0:00:11]} 53. Bxb6 {[%emt 0:00:08]} Kg8 {[%emt 0:00:48]} 54. Kh3 {[%emt 0:00:15]} Ne4 {[%emt 0:00:17]} 55. Bd4 {[%emt 0:00:09]} Ng5+ {[%emt 0:00:21]} 56. Kg4 {[%emt 0:00:05]} Ne4 {[%emt 0:00:31]} 57. Kf4 {[%emt 0:00:06]} Nd6 {[%emt 0:00:13]} 58. g4 {[%emt 0:00:19]} Nf7 {[%emt 0:01:15]} 59. Bf6 {[%emt 0:00:08]} Kf8 {[%emt 0:00:13]} 60. Kg3 {[%emt 0:00:29]} Kg8 {[%emt 0:00:32]} 61. Kh4 {[%emt 0:01:04]} Nd6 {[%emt 0:00:50]} 62. Kh5 {[%emt 0:00:53]} Ne4 {[%emt 0:00:25]} 63. Kg6 {[%emt 0:00:18]} Nd6 {[%emt 0:00:20]} 64. Bg7 {[%emt 0:00:14]} Ne4 {[%emt 0:01:07]} 65. Kh6 {[%emt 0:00:16]} Nd6 {[%emt 0:00:15]} 66. Kg6 {[%emt 0:00:27]} Ne4 {[%emt 0:00:22]} 67. Bf6 {[%emt 0:00:06]} Nd6 {[%emt 0:00:35]} 68. Ba1 {[%emt 0:00:34]} Ne4 {[%emt 0:00:34]} 69. Bg7 {[%emt 0:00:30]} Nd6 {[%emt 0:00:19]} 70. Kf6 {[%emt 0:00:00]} Ne8+ {[%emt 0:00:10]} 1/2-1/2

[Event "GER-ch Youth-U12 2022"]
[Site "Willingen"]
[Date "2022.06.10"]
[Round "8.1"]
[White "Korchynskyi, Mykola"]
[Black "Stichter, Constantin Paul"]
[Result "1/2-1/2"]
[ECO "D38"]
[WhiteElo "1723"]
[BlackElo "1472"]
[Annotator "NA RC COMBH"]
[PlyCount "160"]
[EventDate "2022.06.05"]
[EventType "swiss"]
[EventRounds "9"]
[EventCountry "GER"]
[SourceTitle "playchess.com"]
[Source "ChessBase"]
[SourceQuality "1"]
[TimeControl "40/4500+30:900+30"]

1. d4 {[%emt 0:00:00]} d5 {[%emt 0:00:00]} 2. c4 {[%emt 0:00:00]} e6 {[%emt 0:00:00]} 3. Nc3 {[%emt 0:00:00]} Nf6 {[%emt 0:00:00]} 4. Bg5 {[%emt 0:00:00]} Nbd7 {[%emt 0:00:00]} 5. Nf3 {[%emt 0:00:00]} Bb4 {[%emt 0:00:00]} 6. e3 {[%emt 0:00:00]} c5 {[%emt 0:00:00]} 7. Bxf6 {[%emt 0:00:00]} Nxf6 {[%emt 0:00:00]} 8. dxc5 {[%emt 0:00:00]} Qa5 {[%emt 0:00:00]} 9. Nd2 {[%emt 0:00:00]} Qxc5 {[%emt 0:00:00]} 10. Rc1 {[%emt 0:00:00]} Bd7 {[%emt 0:00:00]} 11. cxd5 {[%emt 0:03:54]} Nxd5 {[%emt 0:00:00]} 12. Nce4 {[%emt 0:05:41]} Qa5 {[%emt 0:00:58]} 13. Bc4 {[%emt 0:01:42]} O-O {[%emt 0:05:38]} 14. a3 {[%emt 0:01:09]} Bxd2+ {[%emt 0:00:19]} 15. Qxd2 {[%emt 0:00:04]} Qxd2+ {[%emt 0:00:09]} 16. Nxd2 {[%emt 0:00:58]} Bc6 {[%emt 0:01:17]} 17. Bxd5 {[%emt 0:00:47]} Bxd5 {[%emt 0:00:15]} 18. f3 {[%emt 0:03:52]} f5 {[%emt 0:01:11]} 19. Ke2 {[%emt 0:01:28]} Bc6 {[%emt 0:05:22]} 20. Nb3 {[%emt 0:03:19]} Rac8 {[%emt 0:05:31]} 21. Kf2 {[%emt 0:05:06]} Rfd8 {[%emt 0:00:31]} 22. Nd4 {[%emt 0:03:25]} Bd5 {[%emt 0:06:17]} 23. Kg3 {[%emt 0:02:01]} Kf7 {[%emt 0:01:08]} 24. Nb5 {[%emt 0:03:00]} Rxc1 {[%emt 0:01:49]} 25. Rxc1 {[%emt 0:00:17]} a6 {[%emt 0:00:17]} 26. Rc7+ {[%emt 0:02:05]} Kf6 {[%emt 0:00:08]} 27. Nd4 {[%emt 0:04:54]} Re8 {[%emt 0:04:26]} 28. Nc2 {[%emt 0:03:27]} Re7 {[%emt 0:01:56]} 29. Rxe7 {[%emt 0:19:13]} Kxe7 {[%emt 0:00:08]} 30. Kf4 {[%emt 0:00:59]} Kf6 {[%emt 0:00:24]} 31. e4 {[%emt 0:03:07]} e5+ {[%emt 0:01:48]} 32. Ke3 {[%emt 0:01:03]} fxe4 {[%emt 0:01:00]} 33. fxe4 {[%emt 0:00:52]} Bc4 {[%emt 0:00:33]} 34. Kf3 {[%emt 0:02:30]} g6 {[%emt 0:04:13]} 35. Ne3 {[%emt 0:01:01]} Bb3 {[%emt 0:00:42]} 36. Ng4+ {[%emt 0:00:13]} Ke6 {[%emt 0:00:13]} 37. Ke3 {[%emt 0:00:08]} Bc4 {[%emt 0:01:24]} 38. h4 {[%emt 0:01:28]} Bf1 {[%emt 0:01:00]} 39. g3 {[%emt 0:00:53]} b6 {[%emt 0:00:46]} 40. Kf3 {[%emt 0:03:32]} Bb5 {[%emt 0:01:41]} 41. Ne3 {[%emt 0:16:22]} Bc6 {[%emt 0:19:59]} 42. Nc4 {[%emt 0:00:19]} b5 {[%emt 0:00:13]} 43. Na5 {[%emt 0:00:50]} Ba8 {[%emt 0:00:21]} 44. b4 {[%emt 0:00:53]} Kd6 {[%emt 0:00:17]} 45. Nb3 {[%emt 0:00:24]} Bb7 {[%emt 0:00:44]} 46. Nc5 {[%emt 0:00:43]} Bc8 {[%emt 0:00:04]} 47. Nd3 {[%emt 0:00:52]} Be6 {[%emt 0:00:31]} 48. Nb2 {[%emt 0:01:30]} Bd7 {[%emt 0:00:54]} 49. Ke3 {[%emt 0:01:23]} Ke6 {[%emt 0:00:58]} 50. Nd1 {[%emt 0:00:35]} Kd6 {[%emt 0:02:37]} 51. Nc3 {[%emt 0:00:27]} Bc6 {[%emt 0:00:17]} 52. Ke2 {[%emt 0:00:30]} Ke6 {[%emt 0:00:52]} 53. Kf3 {[%emt 0:00:17]} Kd6 {[%emt 0:00:30]} 54. Kg4 {[%emt 0:00:29]} h6 {[%emt 0:00:09]} 55. Kf3 {[%emt 0:00:50]} Ke6 {[%emt 0:00:42]} 56. Nd1 {[%emt 0:00:33]} Bb7 {[%emt 0:04:32]} 57. Ne3 {[%emt 0:00:26]} Bc6 {[%emt 0:00:49]} 58. Nd1 {[%emt 0:03:08]} Ke7 {[%emt 0:04:02]} 59. Nf2 {[%emt 0:00:29]} Bd7 {[%emt 0:04:30]} 60. Nd3 {[%emt 0:03:10]} Kd6 {[%emt 0:00:40]} 61. Nc5 {[%emt 0:01:16]} Bc8 {[%emt 0:00:51]} 62. a4 {[%emt 0:00:47]} Kc6 {[%emt 0:00:15]} 63. axb5+ {[%emt 0:03:02]} axb5 {[%emt 0:01:07]} 64. Nd3 {[%emt 0:00:35]} Kd6 {[%emt 0:00:13]} 65. Nf2 {[%emt 0:00:09]} Be6 {[%emt 0:00:22]} 66. Nd1 {[%emt 0:00:00]} Bd7 {[%emt 0:00:00]} 67. Ne3 {[%emt 0:00:00]} Be6 {[%emt 0:00:00]} 68. Nd1 {[%emt 0:00:00]} Bd7 {[%emt 0:00:00]} 69. Nc3 {[%emt 0:00:00]} Bc6 {[%emt 0:00:00]} 70. Kg2 {[%emt 0:00:00]} Ke7 {[%emt 0:00:00]} 71. Kh3 {[%emt 0:00:00]} Kd6 {[%emt 0:00:00]} 72. Kg4 {[%emt 0:00:00]} Bd7+ {[%emt 0:00:00]} 73. Kf3 {[%emt 0:00:00]} Bc6 {[%emt 0:00:00]} 74. g4 {[%emt 0:00:00]} h5 {[%emt 0:00:00]} 75. gxh5 {[%emt 0:00:00]} gxh5 {[%emt 0:00:00]} 76. Nd1 {[%emt 0:00:00]} Bd7 {[%emt 0:00:00]} 77. Ne3 {[%emt 0:00:00]} Be6 {[%emt 0:00:00]} 78. Nf5+ {[%emt 0:00:00]} Bxf5 {[%emt 0:00:00]} 79. exf5 {[%emt 0:00:00]} Ke7 {[%emt 0:00:00]} 80. Ke3 {[%emt 0:00:00]} Kf7 {[%emt 0:00:00]} 1/2-1/2

[Event "GER-ch Youth-U12 2022"]
[Site "Willingen"]
[Date "2022.06.10"]
[Round "8.2"]
[White "Malinowsky, Levi"]
[Black "Buchinger, Alexis"]
[Result "1/2-1/2"]
[ECO "C70"]
[WhiteElo "1816"]
[BlackElo "1676"]
[Annotator "NA RC COMBH"]
[PlyCount "90"]
[EventDate "2022.06.05"]
[EventType "swiss"]
[EventRounds "9"]
[EventCountry "GER"]
[SourceTitle "playchess.com"]
[Source "ChessBase"]
[SourceQuality "1"]
[TimeControl "40/4500+30:900+30"]

{[%evp 21,90,-35,-40,-41,-38,-38,-4,-54,-5,-100,-89,-103,32767,32767,-59,-159,32767,62,32767,91,89,90,87,86,105,101,32767,125,32767,32767,70,62,73,85,32767,32767,83,61,78,32767,32767,32767,32767,32767,106,32767,32767,32767,83,32767,54,32767,32767,32767,32767,32767,170,32767,32767,32767,32767,32767,0,0,0,32767,32767,32767,0,0,0]} 1. e4 {[%emt 0:00:00]} e5 {[%emt 0:00:00]} 2. Nf3 {[%emt 0:00:00]} Nc6 {[%emt 0:00:00]} 3. Bb5 {[%emt 0:00:00]} a6 {[%emt 0:00:00]} 4. Ba4 {[%emt 0:00:00]} b5 {[%emt 0:00:00]} 5. Bb3 {[%emt 0:00:00]} Na5 {[%emt 0:00:00]} 6. c3 {[%emt 0:00:00]} Nxb3 {[%emt 0:00:00]} 7. Qxb3 {[%emt 0:00:00]} d6 {[%emt 0:00:00]} 8. a4 {[%emt 0:00:00]} Bd7 {[%emt 0:00:00]} 9. axb5 {[%emt 0:00:34]} axb5 {[%emt 0:00:00]} 10. Ng5 {[%emt 0:05:20]} Nh6 {[%emt 0:00:00]} 11. Rxa8 {[%emt 0:02:08]} Qxa8 {[%emt 0:00:00]} 12. O-O {[%emt 0:01:56]} Be7 {[%emt 0:00:00]} 13. d4 {[%emt 0:03:09]} Bxg5 {[%emt 0:13:22]} 14. Bxg5 {[%emt 0:00:11]} Qxe4 {[%emt 0:01:46]} 15. Bxh6 {[%emt 0:10:43]} (15. Nd2 $11 {keeps the balance.} Qg6 16. Bxh6 gxh6 17. dxe5) 15... gxh6 {[%emt 0:01:52]} 16. Nd2 {[%emt 0:01:47]} Qd3 {[%emt 0:12:36]} 17. Qd5 {[%emt 0:03:27]} Ke7 {[%emt 0:08:16]} ({Black should play} 17... O-O $17 18. Nf3 Bg4) 18. Ne4 {[%emt 0:03:12]} (18. Nf3 $1 $15) 18... Rg8 {[%emt 0:06:17] [#]} 19. Nf6 $1 {[%emt 0:03:33]} Rg7 {[%emt 0:14:14]} 20. dxe5 {[%emt 0:05:52] Discovered Attack} Qxd5 {[%emt 0:09:22]} 21. Nxd5+ {[%emt 0:00:09]} Kd8 {[%emt 0:02:01]} 22. exd6 {[%emt 0:01:46]} cxd6 {[%emt 0:00:48]} 23. Rd1 {[%emt 0:02:28]} Bc6 {[%emt 0:02:09]} 24. Kf1 {[%emt 0:03:56]} Kd7 {[%emt 0:01:31]} 25. Rd4 {[%emt 0:05:56]} Bxd5 {[%emt 0:01:35]} 26. Rxd5 {[%emt 0:00:10]} Rg5 {[%emt 0:00:04]} 27. Rd4 {[%emt 0:00:43]} Ke6 {[%emt 0:02:18]} 28. g3 {[%emt 0:01:39]} Re5 {[%emt 0:01:49]} 29. f3 {[%emt 0:02:16]} h5 {[%emt 0:01:53]} 30. Kf2 {[%emt 0:01:43]} f6 {[%emt 0:02:21]} 31. Rh4 {[%emt 0:03:44]} Kd5 {[%emt 0:01:47]} 32. Rb4 {[%emt 0:01:02]} Ke6 {[%emt 0:00:55]} 33. Rd4 {[%emt 0:01:02]} Ke7 {[%emt 0:03:03]} 34. f4 {[%emt 0:05:26]} Rc5 {[%emt 0:01:09]} 35. Re4+ {[%emt 0:01:46]} Kf7 {[%emt 0:00:41]} 36. Ke3 {[%emt 0:01:43]} f5 {[%emt 0:00:24]} 37. Rd4 {[%emt 0:01:34]} Ke6 {[%emt 0:00:26]} 38. Kd3 {[%emt 0:00:59]} d5 {[%emt 0:00:50]} (38... h4 $11) 39. Rb4 {[%emt 0:01:04]} Kd6 {[%emt 0:00:15]} 40. Kd4 {[%emt 0:00:47]} Rc4+ {[%emt 0:01:13]} 41. Rxc4 {[%emt 0:15:41]} dxc4 {[%emt 0:00:00]} 42. h3 {[%emt 0:00:00]} h4 $11 {[%emt 0:00:00]} 43. gxh4 {[%emt 0:08:18]} h5 {[%emt 0:00:00]} 44. Ke3 {[%emt 0:00:00]} Kc5 $11 {[%emt 0:00:00]} 45. Kf3 {[%emt 0:00:00]} Kd5 {[%emt 0:00:00]} 1/2-1/2

[Event "GER-ch Youth-U12 2022"]
[Site "Willingen"]
[Date "2022.06.10"]
[Round "8.3"]
[White "Sydykov Bayastan"]
[Black "Nechitailo, Nikita"]
[Result "1/2-1/2"]
[ECO "B27"]
[WhiteElo "1477"]
[BlackElo "1371"]
[Annotator "NA RC COMBH"]
[PlyCount "92"]
[EventDate "2022.06.05"]
[EventType "swiss"]
[EventRounds "9"]
[EventCountry "GER"]
[SourceTitle "playchess.com"]
[Source "ChessBase"]
[SourceQuality "1"]
[TimeControl "40/4500+30:900+30"]

1. e4 {[%emt 0:00:00]} c5 {[%emt 0:00:00]} 2. Nf3 {[%emt 0:00:00]} g6 {[%emt 0:00:00]} 3. c3 {[%emt 0:00:00]} Bg7 {[%emt 0:00:00]} 4. d4 {[%emt 0:00:00]} cxd4 {[%emt 0:00:00]} 5. cxd4 {[%emt 0:00:00]} d5 {[%emt 0:00:00]} 6. e5 {[%emt 0:00:00]} Bg4 {[%emt 0:00:00]} 7. Bb5+ {[%emt 0:00:00]} Nc6 {[%emt 0:00:00]} 8. Bxc6+ {[%emt 0:00:00]} bxc6 {[%emt 0:00:00]} 9. Nbd2 {[%emt 0:00:00]} f6 {[%emt 0:00:00]} 10. h3 {[%emt 0:00:00]} Bxf3 {[%emt 0:00:00]} 11. Nxf3 {[%emt 0:00:00]} c5 {[%emt 0:00:00]} 12. O-O {[%emt 0:00:00]} e6 {[%emt 0:00:00]} 13. Re1 {[%emt 0:00:00]} Qd7 {[%emt 0:22:08]} 14. dxc5 {[%emt 0:00:00]} Ne7 {[%emt 0:00:13]} 15. exf6 {[%emt 0:00:00]} Bxf6 {[%emt 0:00:06]} 16. Bg5 {[%emt 0:00:00]} O-O {[%emt 0:08:39]} 17. Qe2 {[%emt 0:00:00]} Nf5 {[%emt 0:06:06]} 18. Qxe6+ {[%emt 0:05:16]} Qxe6 {[%emt 0:00:05]} 19. Rxe6 {[%emt 0:00:06]} Bxb2 {[%emt 0:00:11]} 20. Rd1 {[%emt 0:00:32]} d4 {[%emt 0:06:40]} 21. g4 {[%emt 0:03:02]} Ng7 {[%emt 0:06:36]} 22. Re2 {[%emt 0:02:12]} Rxf3 {[%emt 0:00:29]} 23. Rxb2 {[%emt 0:03:58]} Ne6 {[%emt 0:00:08]} 24. Be7 {[%emt 0:02:36]} Rxh3 {[%emt 0:02:41]} 25. Re2 {[%emt 0:04:34]} Kf7 {[%emt 0:02:48]} 26. Bd6 {[%emt 0:01:23]} Rc3 {[%emt 0:02:30]} 27. f4 {[%emt 0:10:09]} Rd8 {[%emt 0:19:14]} 28. f5 {[%emt 0:00:46]} gxf5 {[%emt 0:00:26]} 29. gxf5 {[%emt 0:03:53]} Rg8+ {[%emt 0:02:44]} 30. Kf1 {[%emt 0:13:53]} Nxc5 {[%emt 0:03:34]} 31. Rxd4 {[%emt 0:00:46]} Rg5 {[%emt 0:00:57]} 32. Re7+ {[%emt 0:08:29]} Kf6 {[%emt 0:00:21]} 33. Rxh7 {[%emt 0:05:17]} Rxf5+ {[%emt 0:00:13]} 34. Ke1 {[%emt 0:00:44]} Ra3 {[%emt 0:02:59]} 35. Rc7 {[%emt 0:02:44]} Ra5 {[%emt 0:01:30]} 36. Be7+ {[%emt 0:02:36]} Ke6 {[%emt 0:01:05]} 37. Bd8 {[%emt 0:01:15]} Re5+ {[%emt 0:00:53]} 38. Kd1 {[%emt 0:00:09]} Rxa2 {[%emt 0:00:18]} 39. Re7+ {[%emt 0:02:57]} Kf5 {[%emt 0:00:03]} 40. Rf7+ {[%emt 0:00:16]} Kg6 {[%emt 0:00:05]} 41. Rf6+ {[%emt 0:15:13]} Kh7 {[%emt 0:15:54]} 42. Rh4+ {[%emt 0:01:48]} Kg7 {[%emt 0:00:20]} 43. Rg4+ {[%emt 0:00:39]} Kh7 {[%emt 0:00:07]} 44. Rf7+ {[%emt 0:00:19]} Kh6 {[%emt 0:00:32]} 45. Rh4+ {[%emt 0:01:31]} Kg6 {[%emt 0:00:28]} 46. Rf6+ {[%emt 0:00:07]} Kg7 {[%emt 0:00:05]} 1/2-1/2

[Event "GER-ch Youth-U12 2022"]
[Site "Willingen"]
[Date "2022.06.10"]
[Round "8.5"]
[White "Dordevic, Tom"]
[Black "Nemitz, Alfred"]
[Result "1/2-1/2"]
[ECO "A48"]
[WhiteElo "1771"]
[BlackElo "1611"]
[Annotator "NA RC COMBH"]
[PlyCount "88"]
[EventDate "2022.06.05"]
[EventType "swiss"]
[EventRounds "9"]
[EventCountry "GER"]
[SourceTitle "playchess.com"]
[Source "ChessBase"]
[SourceQuality "1"]
[TimeControl "40/4500+30:900+30"]

1. d4 {[%emt 0:00:00]} Nf6 {[%emt 0:00:00]} 2. Nf3 {[%emt 0:00:00]} g6 {[%emt 0:00:00]} 3. Bf4 {[%emt 0:00:00]} Bg7 {[%emt 0:00:00]} 4. e3 {[%emt 0:00:00]} d6 {[%emt 0:00:00]} 5. Be2 {[%emt 0:00:00]} O-O {[%emt 0:00:00]} 6. h3 {[%emt 0:00:00]} Nbd7 {[%emt 0:00:00]} 7. O-O {[%emt 0:10:31]} c5 {[%emt 0:00:00]} 8. c3 {[%emt 0:00:00]} b6 {[%emt 0:07:04]} 9. Nbd2 {[%emt 0:00:00]} Bb7 {[%emt 0:00:22]} 10. Rc1 {[%emt 0:00:00]} Re8 {[%emt 0:05:19]} 11. Bh2 {[%emt 0:00:00]} Rc8 {[%emt 0:01:29]} 12. Re1 {[%emt 0:04:26]} Ne4 {[%emt 0:05:25]} 13. Nxe4 {[%emt 0:23:25]} Bxe4 {[%emt 0:00:17]} 14. Bb5 {[%emt 0:00:31]} Qc7 {[%emt 0:12:58]} 15. d5 {[%emt 0:13:08]} Bxf3 {[%emt 0:00:49]} 16. Qxf3 {[%emt 0:00:05]} Red8 {[%emt 0:02:49]} 17. Bxd7 {[%emt 0:01:36]} Qxd7 {[%emt 0:00:34]} 18. e4 {[%emt 0:00:23]} c4 {[%emt 0:05:14]} 19. Qd1 {[%emt 0:05:29]} Rc5 {[%emt 0:02:29]} 20. Qc2 {[%emt 0:01:14]} b5 {[%emt 0:02:33]} 21. Bf4 {[%emt 0:00:46]} Rb8 {[%emt 0:01:47]} 22. Bd2 {[%emt 0:03:10]} a5 {[%emt 0:00:56]} 23. a3 {[%emt 0:00:37]} e5 {[%emt 0:06:44]} 24. dxe6 {[%emt 0:04:27]} fxe6 {[%emt 0:01:27]} 25. Bf4 {[%emt 0:01:46]} b4 {[%emt 0:03:46]} 26. axb4 {[%emt 0:01:05]} axb4 {[%emt 0:00:18]} 27. Qd2 {[%emt 0:00:09]} bxc3 {[%emt 0:01:52]} 28. bxc3 {[%emt 0:00:08]} Be5 {[%emt 0:07:12]} 29. Bxe5 {[%emt 0:11:19]} Rxe5 {[%emt 0:00:06]} 30. Rcd1 {[%emt 0:00:04]} Rb6 {[%emt 0:08:18]} 31. Qd4 {[%emt 0:03:29]} Qc7 {[%emt 0:00:56]} 32. Ra1 {[%emt 0:00:49]} Qc5 {[%emt 0:01:37]} 33. Ra4 {[%emt 0:01:14]} Rc6 {[%emt 0:00:40]} 34. Ra8+ {[%emt 0:00:26]} Kg7 {[%emt 0:00:11]} 35. Qd1 {[%emt 0:01:10]} Rc7 {[%emt 0:02:50]} 36. Ra2 {[%emt 0:00:59]} Rb7 {[%emt 0:01:41]} 37. Rd2 {[%emt 0:00:44]} Rd7 {[%emt 0:02:09]} 38. Rd4 {[%emt 0:00:39]} d5 {[%emt 0:02:42]} 39. exd5 {[%emt 0:00:16]} Rxe1+ {[%emt 0:00:46]} 40. Qxe1 {[%emt 0:00:04]} Rxd5 {[%emt 0:00:10]} 41. Qxe6 {[%emt 0:00:00]} Rxd4 {[%emt 0:00:00]} 42. cxd4 {[%emt 0:00:00]} Qxd4 {[%emt 0:00:00]} 43. Qe7+ {[%emt 0:00:00]} Kh6 {[%emt 0:00:00]} 44. h4 {[%emt 0:05:49]} c3 {[%emt 0:00:00]} 1/2-1/2